[Event "Late-Titled-Tuesday-Blitz-August-29-2023"]
[Site "Chess.com"]
[Date "2023.08.29"]
[Round "11"]
[White "Schwindle"]
[Black "Cluke86"]
[Result "1-0"]
[WhiteElo "2402"]
[BlackElo "2283"]
[TimeControl "180+1"]
[EndTime "15:59:53 PDT"]
[Termination "Schwindle won by checkmate"]

1. e4 {[%clk 0:03:00.9]} 1... e5 {[%clk 0:02:58.7]} 2. d4 {[%clk 0:03:01]} 2...
exd4 {[%clk 0:02:56.6]} 3. c3 {[%clk 0:03:01.6]} 3... d3 {[%clk 0:02:53.1]} 4.
Bxd3 {[%clk 0:03:01.4]} 4... Nf6 {[%clk 0:02:47.2]} 5. Nf3 {[%clk 0:02:53.8]}
5... d5 {[%clk 0:02:41.9]} 6. e5 {[%clk 0:02:52.8]} 6... Ne4 {[%clk 0:02:40.1]}
7. Nbd2 {[%clk 0:02:47]} 7... Nc5 {[%clk 0:02:31.8]} 8. Bc2 {[%clk 0:02:45.2]}
8... Be7 {[%clk 0:02:26.9]} 9. h3 {[%clk 0:02:35.5]} 9... O-O {[%clk 0:02:24]}
10. O-O {[%clk 0:02:35.3]} 10... Be6 {[%clk 0:02:19.3]} 11. Nb3 {[%clk
0:02:26.4]} 11... Nxb3 {[%clk 0:02:14.9]} 12. axb3 {[%clk 0:02:26.5]} 12... c6
{[%clk 0:02:08.7]} 13. Nd4 {[%clk 0:02:25.5]} 13... Nd7 {[%clk 0:02:05.9]} 14.
f4 {[%clk 0:02:24.9]} 14... Nc5 {[%clk 0:01:56.1]} 15. f5 {[%clk 0:02:17.6]}
15... Bc8 {[%clk 0:01:55.4]} 16. f6 {[%clk 0:02:11.3]} 16... gxf6 {[%clk
0:01:55.1]} 17. Qh5 {[%clk 0:02:06.1]} 17... Ne4 {[%clk 0:01:50.6]} 18. Bh6
{[%clk 0:01:58.5]} 18... Re8 {[%clk 0:01:36]} 19. Rad1 {[%clk 0:01:50.2]} 19...
fxe5 {[%clk 0:01:28.5]} 20. Qxf7+ {[%clk 0:01:35.7]} 20... Kh8 {[%clk
0:01:25.2]} 21. Qg7# {[%clk 0:01:35.6]} 1-0

[Event "Late-Titled-Tuesday-Blitz-August-29-2023"]
[Site "Chess.com"]
[Date "2023.08.29"]
[Round "11"]
[White "wild3000"]
[Black "ritanovikova"]
[Result "1-0"]
[WhiteElo "2296"]
[BlackElo "2157"]
[TimeControl "180+1"]
[EndTime "15:59:58 PDT"]
[Termination "wild3000 won by checkmate"]

1. c4 {[%clk 0:03:00.6]} 1... c5 {[%clk 0:02:59.7]} 2. h4 {[%clk 0:02:59.3]}
2... Nc6 {[%clk 0:02:58.6]} 3. h5 {[%clk 0:02:59.5]} 3... d6 {[%clk 0:02:56.2]}
4. Nf3 {[%clk 0:02:57.7]} 4... h6 {[%clk 0:02:54.3]} 5. d4 {[%clk 0:02:56.8]}
5... cxd4 {[%clk 0:02:49.1]} 6. Nxd4 {[%clk 0:02:57.7]} 6... Nxd4 {[%clk
0:02:48.9]} 7. Qxd4 {[%clk 0:02:58.6]} 7... Nf6 {[%clk 0:02:48.9]} 8. Nc3 {[%clk
0:02:58.6]} 8... a6 {[%clk 0:02:46.3]} 9. e4 {[%clk 0:02:58.7]} 9... Bg4 {[%clk
0:02:41.7]} 10. e5 {[%clk 0:02:49.9]} 10... dxe5 {[%clk 0:02:39.4]} 11. Qxe5
{[%clk 0:02:50.8]} 11... e6 {[%clk 0:02:38]} 12. f3 {[%clk 0:02:47.5]} 12... Bd6
{[%clk 0:02:35.8]} 13. Qe3 {[%clk 0:02:31.1]} 13... Bg3+ {[%clk 0:02:34.6]} 14.
Ke2 {[%clk 0:02:31.3]} 14... Bxh5 {[%clk 0:02:31.8]} 15. Ne4 {[%clk 0:02:24.7]}
15... Bg6 {[%clk 0:02:26.5]} 16. Bd2 {[%clk 0:02:20.5]} 16... Bc7 {[%clk
0:02:25.2]} 17. Nxf6+ {[%clk 0:02:16.4]} 17... Qxf6 {[%clk 0:02:24.1]} 18. Bc3
{[%clk 0:02:16.7]} 18... Qf5 {[%clk 0:02:19.1]} 19. Rd1 {[%clk 0:02:11.3]} 19...
O-O {[%clk 0:02:18]} 20. g4 {[%clk 0:02:09.7]} 20... Qc2+ {[%clk 0:02:13.8]} 21.
Rd2 {[%clk 0:02:08.2]} 21... Qa4 {[%clk 0:02:13.2]} 22. b3 {[%clk 0:02:05.1]}
22... Qc6 {[%clk 0:02:12.2]} 23. Bxg7 {[%clk 0:01:55.9]} 23... Kxg7 {[%clk
0:02:07.7]} 24. Qxh6+ {[%clk 0:01:55.7]} 24... Kf6 {[%clk 0:02:07.9]} 25. Qh4+
{[%clk 0:01:55.8]} 25... Ke5 {[%clk 0:02:01]} 26. Qg5+ {[%clk 0:01:32.6]} 26...
Bf5 {[%clk 0:01:51.1]} 27. f4+ {[%clk 0:01:32.5]} 27... Ke4 {[%clk 0:01:47.9]}
28. Bg2# {[%clk 0:01:32.4]} 1-0

[Event "Late-Titled-Tuesday-Blitz-August-29-2023"]
[Site "Chess.com"]
[Date "2023.08.29"]
[Round "11"]
[White "DishonorOnYourCow"]
[Black "lamomiajunior"]
[Result "0-1"]
[WhiteElo "2552"]
[BlackElo "2727"]
[TimeControl "180+1"]
[EndTime "15:59:59 PDT"]
[Termination "lamomiajunior won by resignation"]

1. d4 {[%clk 0:03:00.9]} 1... Nf6 {[%clk 0:03:00]} 2. c4 {[%clk 0:03:01]} 2...
e6 {[%clk 0:03:00.6]} 3. Nf3 {[%clk 0:03:01]} 3... d5 {[%clk 0:03:00.9]} 4. Nc3
{[%clk 0:03:01]} 4... Bb4 {[%clk 0:03:01.4]} 5. cxd5 {[%clk 0:02:58.2]} 5...
exd5 {[%clk 0:03:01.8]} 6. Bg5 {[%clk 0:02:55.3]} 6... h6 {[%clk 0:03:02.2]} 7.
Bxf6 {[%clk 0:02:55.3]} 7... Qxf6 {[%clk 0:03:02]} 8. Rc1 {[%clk 0:02:55.8]}
8... c6 {[%clk 0:03:01.5]} 9. e3 {[%clk 0:02:55.6]} 9... O-O {[%clk 0:03:02.1]}
10. Bd3 {[%clk 0:02:55]} 10... Re8 {[%clk 0:03:00.8]} 11. h3 {[%clk 0:02:51.3]}
11... Bd6 {[%clk 0:02:57.4]} 12. O-O {[%clk 0:02:48.5]} 12... Bf5 {[%clk
0:02:55.6]} 13. Bxf5 {[%clk 0:02:40.2]} 13... Qxf5 {[%clk 0:02:56.5]} 14. Na4
{[%clk 0:02:35.3]} 14... Nd7 {[%clk 0:02:53.5]} 15. Nc5 {[%clk 0:02:35.4]} 15...
Nxc5 {[%clk 0:02:49]} 16. dxc5 {[%clk 0:02:36.3]} 16... Bc7 {[%clk 0:02:49.6]}
17. Nd4 {[%clk 0:02:32.7]} 17... Qf6 {[%clk 0:02:47.7]} 18. Qf3 {[%clk
0:02:15.4]} 18... Qe5 {[%clk 0:02:46]} 19. g3 {[%clk 0:02:14.8]} 19... g6 {[%clk
0:02:46]} 20. h4 {[%clk 0:02:14]} 20... h5 {[%clk 0:02:44.4]} 21. b4 {[%clk
0:02:11.2]} 21... a6 {[%clk 0:02:38.5]} 22. a4 {[%clk 0:02:10.7]} 22... Kg7
{[%clk 0:02:38.4]} 23. b5 {[%clk 0:02:08.1]} 23... axb5 {[%clk 0:02:38.7]} 24.
axb5 {[%clk 0:02:09]} 24... Ra3 {[%clk 0:02:35.1]} 25. bxc6 {[%clk 0:02:07.2]}
25... Qxd4 {[%clk 0:02:35.6]} 26. cxb7 {[%clk 0:01:57.5]} 26... Qe5 {[%clk
0:02:29.3]} 27. Rfd1 {[%clk 0:01:53.8]} 27... d4 {[%clk 0:02:28.7]} 28. Rxd4
{[%clk 0:01:50.5]} 28... Qxd4 {[%clk 0:02:27.8]} 29. Qc6 {[%clk 0:01:46.9]}
29... Qe5 {[%clk 0:02:22.8]} 30. Re1 {[%clk 0:01:37.4]} 30... Rc3 {[%clk
0:02:18.8]} 31. f4 {[%clk 0:01:34.1]} 31... Qe7 {[%clk 0:02:17.1]} 32. f5 {[%clk
0:01:30.9]} 32... gxf5 {[%clk 0:02:10.7]} 33. Qf3 {[%clk 0:01:18.8]} 33... Rxe3
{[%clk 0:02:08.5]} 0-1

[Event "Late-Titled-Tuesday-Blitz-August-29-2023"]
[Site "Chess.com"]
[Date "2023.08.29"]
[Round "11"]
[White "Zhigalko_Sergei"]
[Black "Sinquefield"]
[Result "1-0"]
[WhiteElo "2904"]
[BlackElo "2471"]
[TimeControl "180+1"]
[EndTime "16:00:13 PDT"]
[Termination "Zhigalko_Sergei won by resignation"]

1. e4 {[%clk 0:03:00.9]} 1... e6 {[%clk 0:02:59.9]} 2. d4 {[%clk 0:03:01.2]}
2... d5 {[%clk 0:03:00.3]} 3. e5 {[%clk 0:03:01.8]} 3... c5 {[%clk 0:03:00.1]}
4. c3 {[%clk 0:03:02.5]} 4... Nc6 {[%clk 0:03:00.5]} 5. Nf3 {[%clk 0:03:03.2]}
5... Nh6 {[%clk 0:02:59.2]} 6. Na3 {[%clk 0:02:57.7]} 6... Nf5 {[%clk
0:02:57.5]} 7. Nc2 {[%clk 0:02:57.8]} 7... Be7 {[%clk 0:02:56.6]} 8. Bd3 {[%clk
0:02:49.6]} 8... cxd4 {[%clk 0:02:54.4]} 9. cxd4 {[%clk 0:02:44.8]} 9... Qb6
{[%clk 0:02:53.7]} 10. O-O {[%clk 0:02:44.8]} 10... Bd7 {[%clk 0:02:47.4]} 11.
g4 {[%clk 0:02:38]} 11... Nh4 {[%clk 0:02:31.3]} 12. Nxh4 {[%clk 0:02:38.1]}
12... Bxh4 {[%clk 0:02:32.2]} 13. g5 {[%clk 0:02:38.6]} 13... h6 {[%clk
0:02:28.5]} 14. Qh5 {[%clk 0:02:38]} 14... Nxd4 {[%clk 0:02:23.3]} 15. Be3
{[%clk 0:02:38.1]} 15... g6 {[%clk 0:02:17]} 16. Qg4 {[%clk 0:02:31.8]} 16...
Bxg5 {[%clk 0:02:06.9]} 17. Bxd4 {[%clk 0:02:25.8]} 17... Qd8 {[%clk 0:02:03.8]}
18. f4 {[%clk 0:02:25.2]} 18... Be7 {[%clk 0:02:02.5]} 19. Ne3 {[%clk
0:02:17.6]} 19... h5 {[%clk 0:02:02.1]} 20. Qg2 {[%clk 0:02:16.5]} 20... O-O
{[%clk 0:01:53.2]} 21. Bxg6 {[%clk 0:02:01.6]} 21... fxg6 {[%clk 0:01:52.2]} 22.
Qxg6+ {[%clk 0:02:00.7]} 22... Kh8 {[%clk 0:01:52]} 23. Qxh5+ {[%clk 0:01:59.8]}
23... Kg7 {[%clk 0:01:50.8]} 24. Kh1 {[%clk 0:01:52.3]} 24... Rg8 {[%clk
0:01:12.4]} 25. Rg1+ {[%clk 0:01:46.5]} 25... Kf8 {[%clk 0:01:12.2]} 26. Qh6+
{[%clk 0:01:46.5]} 26... Kf7 {[%clk 0:01:10]} 27. Qh7+ {[%clk 0:01:46.3]} 1-0

[Event "Late-Titled-Tuesday-Blitz-August-29-2023"]
[Site "Chess.com"]
[Date "2023.08.29"]
[Round "11"]
[White "ExchangeAB"]
[Black "Michalczak"]
[Result "0-1"]
[WhiteElo "2437"]
[BlackElo "2517"]
[TimeControl "180+1"]
[EndTime "16:00:25 PDT"]
[Termination "Michalczak won by checkmate"]

1. d4 {[%clk 0:03:00.9]} 1... Nf6 {[%clk 0:02:59.5]} 2. Nc3 {[%clk 0:03:00.9]}
2... d5 {[%clk 0:02:59]} 3. Bf4 {[%clk 0:03:01]} 3... a6 {[%clk 0:02:57.3]} 4.
e3 {[%clk 0:03:01.2]} 4... Bf5 {[%clk 0:02:53.7]} 5. f3 {[%clk 0:03:00.7]} 5...
e6 {[%clk 0:02:43.9]} 6. g4 {[%clk 0:03:00.7]} 6... Bg6 {[%clk 0:02:44.3]} 7. h4
{[%clk 0:03:01.3]} 7... h6 {[%clk 0:02:40.3]} 8. Bd3 {[%clk 0:03:01.4]} 8...
Bxd3 {[%clk 0:02:39.4]} 9. Qxd3 {[%clk 0:03:02.3]} 9... c5 {[%clk 0:02:38.6]}
10. Nge2 {[%clk 0:03:01.2]} 10... c4 {[%clk 0:02:33.7]} 11. Qd2 {[%clk
0:03:00.5]} 11... Nc6 {[%clk 0:02:33.7]} 12. Kf2 {[%clk 0:02:59.5]} 12... Bd6
{[%clk 0:02:31.2]} 13. Bxd6 {[%clk 0:02:58.6]} 13... Qxd6 {[%clk 0:02:30.7]} 14.
Ng3 {[%clk 0:02:58.5]} 14... O-O-O {[%clk 0:02:26.2]} 15. b3 {[%clk 0:02:51]}
15... Na5 {[%clk 0:01:59.2]} 16. Nce4 {[%clk 0:02:34.5]} 16... dxe4 {[%clk
0:01:44.6]} 17. Qxa5 {[%clk 0:02:33.5]} 17... exf3 {[%clk 0:01:45.1]} 18. bxc4
{[%clk 0:02:16.7]} 18... Nxg4+ {[%clk 0:01:43.2]} 19. Kxf3 {[%clk 0:02:16.8]}
19... f5 {[%clk 0:01:37.5]} 20. Nh5 {[%clk 0:01:55.3]} 20... Qc6+ {[%clk
0:01:31.7]} 21. d5 {[%clk 0:01:53.3]} 21... Qxc4 {[%clk 0:01:27]} 22. Nf4 {[%clk
0:01:38]} 22... Qe4+ {[%clk 0:01:25]} 23. Ke2 {[%clk 0:01:16.8]} 23... Qxe3+
{[%clk 0:01:21]} 24. Kd1 {[%clk 0:01:16]} 24... Nf2# {[%clk 0:01:19.8]} 0-1

[Event "Late-Titled-Tuesday-Blitz-August-29-2023"]
[Site "Chess.com"]
[Date "2023.08.29"]
[Round "11"]
[White "Chessdreamer2020"]
[Black "Kostukov_Alex"]
[Result "1-0"]
[WhiteElo "2521"]
[BlackElo "2419"]
[TimeControl "180+1"]
[EndTime "16:00:28 PDT"]
[Termination "Chessdreamer2020 won by resignation"]

1. e4 {[%clk 0:03:00]} 1... c5 {[%clk 0:02:56]} 2. Nf3 {[%clk 0:02:59.7]} 2...
g6 {[%clk 0:02:53.5]} 3. g3 {[%clk 0:02:54.2]} 3... Bg7 {[%clk 0:02:52.9]} 4.
Bg2 {[%clk 0:02:54.8]} 4... Nc6 {[%clk 0:02:53.6]} 5. O-O {[%clk 0:02:55.2]}
5... e5 {[%clk 0:02:53.5]} 6. Na3 {[%clk 0:02:53.6]} 6... Nge7 {[%clk
0:02:51.5]} 7. c3 {[%clk 0:02:50.4]} 7... O-O {[%clk 0:02:43.3]} 8. Re1 {[%clk
0:02:50.9]} 8... d5 {[%clk 0:02:42.2]} 9. exd5 {[%clk 0:02:50.9]} 9... Nxd5
{[%clk 0:02:42.6]} 10. Nc4 {[%clk 0:02:50.6]} 10... Re8 {[%clk 0:02:41.8]} 11.
d3 {[%clk 0:02:45.9]} 11... Nb6 {[%clk 0:02:40.9]} 12. Nxb6 {[%clk 0:02:40.5]}
12... axb6 {[%clk 0:02:41.8]} 13. Ng5 {[%clk 0:02:30.3]} 13... h6 {[%clk
0:02:37.5]} 14. Ne4 {[%clk 0:02:29.9]} 14... f5 {[%clk 0:02:35.3]} 15. Nd2
{[%clk 0:02:28.1]} 15... Qxd3 {[%clk 0:02:32.2]} 16. Qb3+ {[%clk 0:02:28.2]}
16... Kh7 {[%clk 0:02:26.1]} 17. Qxb6 {[%clk 0:02:28.2]} 17... e4 {[%clk
0:02:20]} 18. Qxc5 {[%clk 0:02:25.9]} 18... Ne5 {[%clk 0:02:19.3]} 19. Qe3
{[%clk 0:02:20]} 19... Qc2 {[%clk 0:02:15.5]} 20. Nxe4 {[%clk 0:02:09.2]} 20...
Ng4 {[%clk 0:01:45.1]} 21. Ng5+ {[%clk 0:01:09]} 21... hxg5 {[%clk 0:01:41]} 22.
Qxe8 {[%clk 0:01:09.9]} 22... Qd2 {[%clk 0:01:28.6]} 23. Bxd2 {[%clk 0:01:09.5]}
1-0

[Event "Late-Titled-Tuesday-Blitz-August-29-2023"]
[Site "Chess.com"]
[Date "2023.08.29"]
[Round "11"]
[White "Cipy77"]
[Black "viktorgen2021"]
[Result "1/2-1/2"]
[WhiteElo "2540"]
[BlackElo "2433"]
[TimeControl "180+1"]
[EndTime "16:00:51 PDT"]
[Termination "Game drawn by repetition"]

1. a3 {[%clk 0:03:00.9]} 1... g6 {[%clk 0:02:51.8]} 2. e4 {[%clk 0:02:57.4]}
2... Bg7 {[%clk 0:02:50.6]} 3. d4 {[%clk 0:02:57.4]} 3... d6 {[%clk 0:02:50.5]}
4. Nc3 {[%clk 0:02:57.6]} 4... Nf6 {[%clk 0:02:50.5]} 5. Nf3 {[%clk 0:02:57.9]}
5... O-O {[%clk 0:02:50.4]} 6. Bc4 {[%clk 0:02:58.3]} 6... c6 {[%clk 0:02:50.4]}
7. O-O {[%clk 0:02:57.3]} 7... Bg4 {[%clk 0:02:48.6]} 8. h3 {[%clk 0:02:56.8]}
8... Bxf3 {[%clk 0:02:46.7]} 9. Qxf3 {[%clk 0:02:57.7]} 9... Nbd7 {[%clk
0:02:46.9]} 10. Bg5 {[%clk 0:02:54.3]} 10... e5 {[%clk 0:02:46.5]} 11. dxe5
{[%clk 0:02:43.3]} 11... dxe5 {[%clk 0:02:43.2]} 12. Rad1 {[%clk 0:02:37.4]}
12... Qc7 {[%clk 0:02:42.1]} 13. Rd2 {[%clk 0:02:29.8]} 13... Rad8 {[%clk
0:02:37.5]} 14. Rfd1 {[%clk 0:02:29.7]} 14... b5 {[%clk 0:02:36]} 15. Ba2 {[%clk
0:02:25.7]} 15... h6 {[%clk 0:02:33.5]} 16. Bh4 {[%clk 0:02:23.2]} 16... g5
{[%clk 0:01:52.3]} 17. Bg3 {[%clk 0:02:18.1]} 17... Nh7 {[%clk 0:01:51.9]} 18.
Qf5 {[%clk 0:02:14.7]} 18... Nhf6 {[%clk 0:01:39.5]} 19. Bxe5 {[%clk 0:02:01.9]}
19... Nxe5 {[%clk 0:01:34.2]} 20. Rxd8 {[%clk 0:02:01.1]} 20... Rxd8 {[%clk
0:01:34]} 21. Rxd8+ {[%clk 0:02:00.8]} 21... Qxd8 {[%clk 0:01:34.6]} 22. Qxe5
{[%clk 0:02:01]} 22... Qd2 {[%clk 0:01:20.1]} 23. Qe7 {[%clk 0:01:14.9]} 23...
Qc1+ {[%clk 0:01:15.2]} 24. Kh2 {[%clk 0:01:11.7]} 24... Qf4+ {[%clk 0:01:15.2]}
25. Kg1 {[%clk 0:01:12.1]} 25... Qc1+ {[%clk 0:01:15.2]} 26. Kh2 {[%clk
0:01:12.5]} 26... Qf4+ {[%clk 0:01:06.9]} 27. Kg1 {[%clk 0:01:11.7]} 27... Qc1+
{[%clk 0:01:06.8]} 1/2-1/2

[Event "Late-Titled-Tuesday-Blitz-August-29-2023"]
[Site "Chess.com"]
[Date "2023.08.29"]
[Round "11"]
[White "rdarruda"]
[Black "YEIKO2017"]
[Result "1-0"]
[WhiteElo "2590"]
[BlackElo "2472"]
[TimeControl "180+1"]
[EndTime "16:00:54 PDT"]
[Termination "rdarruda won by checkmate"]

1. d4 {[%clk 0:02:52.3]} 1... Nf6 {[%clk 0:02:58.8]} 2. Nf3 {[%clk 0:02:50.9]}
2... g6 {[%clk 0:02:58.3]} 3. Nc3 {[%clk 0:02:48]} 3... d5 {[%clk 0:02:56.5]} 4.
Bg5 {[%clk 0:02:46.6]} 4... Bg7 {[%clk 0:02:56.2]} 5. Bxf6 {[%clk 0:02:45.6]}
5... exf6 {[%clk 0:02:57.1]} 6. e3 {[%clk 0:02:43.9]} 6... f5 {[%clk 0:02:56.6]}
7. Ne2 {[%clk 0:02:44.1]} 7... c6 {[%clk 0:02:56.1]} 8. h4 {[%clk 0:02:42.4]}
8... h5 {[%clk 0:02:54.2]} 9. Nf4 {[%clk 0:02:42.2]} 9... Nd7 {[%clk 0:02:54]}
10. c4 {[%clk 0:02:42.2]} 10... Qa5+ {[%clk 0:02:51]} 11. Qd2 {[%clk 0:02:42]}
11... Qxd2+ {[%clk 0:02:50.8]} 12. Kxd2 {[%clk 0:02:42.5]} 12... dxc4 {[%clk
0:02:45.1]} 13. Bxc4 {[%clk 0:02:43.4]} 13... Nb6 {[%clk 0:02:40.5]} 14. Bb3
{[%clk 0:02:42.8]} 14... a5 {[%clk 0:02:41.1]} 15. a3 {[%clk 0:02:40]} 15... a4
{[%clk 0:02:38.3]} 16. Ba2 {[%clk 0:02:39.7]} 16... Ra5 {[%clk 0:02:32.6]} 17.
Rac1 {[%clk 0:02:35.9]} 17... Rb5 {[%clk 0:02:29]} 18. Rc2 {[%clk 0:02:36]}
18... Bh6 {[%clk 0:02:17.3]} 19. Nd3 {[%clk 0:02:33]} 19... Nd5 {[%clk
0:02:09.3]} 20. g3 {[%clk 0:02:31.5]} 20... Ra5 {[%clk 0:01:50.3]} 21. Rc5
{[%clk 0:02:29.1]} 21... Rxc5 {[%clk 0:01:45.3]} 22. Nxc5 {[%clk 0:02:30]} 22...
b5 {[%clk 0:01:39.3]} 23. Rc1 {[%clk 0:02:27.4]} 23... O-O {[%clk 0:01:35.7]}
24. Ne5 {[%clk 0:02:22.5]} 24... Re8 {[%clk 0:01:30.9]} 25. Ncd3 {[%clk
0:01:57.8]} 25... Bb7 {[%clk 0:01:02.4]} 26. Bxd5 {[%clk 0:01:50]} 26... cxd5
{[%clk 0:01:03.3]} 27. Rc7 {[%clk 0:01:49.8]} 27... Bc8 {[%clk 0:00:57.7]} 28.
Nxf7 {[%clk 0:01:47.5]} 28... Bf8 {[%clk 0:00:56.8]} 29. Nde5 {[%clk 0:01:39]}
29... b4 {[%clk 0:00:52.1]} 30. Nxg6 {[%clk 0:01:33.8]} 30... bxa3 {[%clk
0:00:51.3]} 31. bxa3 {[%clk 0:01:34.2]} 31... Bxa3 {[%clk 0:00:50.8]} 32. Nh6#
{[%clk 0:01:34.2]} 1-0

[Event "Late-Titled-Tuesday-Blitz-August-29-2023"]
[Site "Chess.com"]
[Date "2023.08.29"]
[Round "11"]
[White "GoltsevDmitry2000"]
[Black "Der_Honigdachs"]
[Result "1-0"]
[WhiteElo "2638"]
[BlackElo "2528"]
[TimeControl "180+1"]
[EndTime "16:01:19 PDT"]
[Termination "GoltsevDmitry2000 won by resignation"]

1. e4 {[%clk 0:02:59.2]} 1... e6 {[%clk 0:02:58]} 2. d4 {[%clk 0:02:58.6]} 2...
d5 {[%clk 0:02:58.6]} 3. exd5 {[%clk 0:02:59.5]} 3... exd5 {[%clk 0:02:58.7]} 4.
Nf3 {[%clk 0:02:59.7]} 4... Nf6 {[%clk 0:02:58.5]} 5. c4 {[%clk 0:02:58.6]} 5...
Bb4+ {[%clk 0:02:56.9]} 6. Nc3 {[%clk 0:02:55.2]} 6... O-O {[%clk 0:02:55.8]} 7.
Be2 {[%clk 0:02:54.8]} 7... dxc4 {[%clk 0:02:55.8]} 8. Bxc4 {[%clk 0:02:55.7]}
8... Re8+ {[%clk 0:02:55.7]} 9. Be3 {[%clk 0:02:54.7]} 9... Be6 {[%clk
0:02:47.9]} 10. Bxe6 {[%clk 0:02:48.2]} 10... Rxe6 {[%clk 0:02:48.8]} 11. O-O
{[%clk 0:02:47.2]} 11... c6 {[%clk 0:02:46.7]} 12. Qb3 {[%clk 0:02:46.3]} 12...
a5 {[%clk 0:02:23.4]} 13. a3 {[%clk 0:02:39.1]} 13... Bxc3 {[%clk 0:02:20.1]}
14. Qxb7 {[%clk 0:02:32.5]} 14... Bxb2 {[%clk 0:02:10.9]} 15. Qxa8 {[%clk
0:02:28.1]} 15... Bxa1 {[%clk 0:02:11.5]} 16. Rxa1 {[%clk 0:02:29]} 16... Re8
{[%clk 0:02:05.6]} 17. Ne5 {[%clk 0:02:22.7]} 17... Nd5 {[%clk 0:02:01.7]} 18.
Rb1 {[%clk 0:02:16.3]} 18... f6 {[%clk 0:01:12]} 19. Nxc6 {[%clk 0:02:04.6]}
19... Nxc6 {[%clk 0:01:12.9]} 20. Qxc6 {[%clk 0:02:05.4]} 20... Nxe3 {[%clk
0:01:13.6]} 21. fxe3 {[%clk 0:02:02.1]} 21... Rxe3 {[%clk 0:01:14.5]} 22. d5
{[%clk 0:01:55]} 22... Rd3 {[%clk 0:01:07.3]} 23. Re1 {[%clk 0:01:42.1]} 23...
Kf7 {[%clk 0:00:48.9]} 24. Qb7+ {[%clk 0:01:35]} 24... Kg6 {[%clk 0:00:47.5]}
25. Qb1 {[%clk 0:01:34.6]} 25... Qxd5 {[%clk 0:00:44.3]} 26. Re3 {[%clk
0:01:30.8]} 26... Qd4 {[%clk 0:00:37.8]} 27. Qxd3+ {[%clk 0:01:27.5]} 1-0

[Event "Late-Titled-Tuesday-Blitz-August-29-2023"]
[Site "Chess.com"]
[Date "2023.08.29"]
[Round "11"]
[White "jcreyes69"]
[Black "laskakid"]
[Result "1-0"]
[WhiteElo "2356"]
[BlackElo "2190"]
[TimeControl "180+1"]
[EndTime "16:01:31 PDT"]
[Termination "jcreyes69 won by resignation"]

1. e4 {[%clk 0:03:00.9]} 1... e5 {[%clk 0:02:59.6]} 2. Nf3 {[%clk 0:02:59.1]}
2... Nc6 {[%clk 0:02:59.7]} 3. Bb5 {[%clk 0:02:59.5]} 3... a6 {[%clk 0:02:59.8]}
4. Bxc6 {[%clk 0:02:59.8]} 4... dxc6 {[%clk 0:02:59.4]} 5. O-O {[%clk
0:03:00.5]} 5... Qf6 {[%clk 0:02:58]} 6. d4 {[%clk 0:02:59.9]} 6... exd4 {[%clk
0:02:57.5]} 7. Bg5 {[%clk 0:03:00.5]} 7... Qd6 {[%clk 0:02:57.5]} 8. Nxd4 {[%clk
0:03:00.8]} 8... Be7 {[%clk 0:02:54.2]} 9. Bxe7 {[%clk 0:03:00.6]} 9... Nxe7
{[%clk 0:02:53.7]} 10. Nc3 {[%clk 0:02:59.5]} 10... Bd7 {[%clk 0:02:51.1]} 11.
Nb3 {[%clk 0:02:56.8]} 11... O-O-O {[%clk 0:02:49.1]} 12. Qe2 {[%clk 0:02:54.9]}
12... Ng6 {[%clk 0:02:46.5]} 13. Rad1 {[%clk 0:02:38.6]} 13... Qe5 {[%clk
0:02:40.7]} 14. Qc4 {[%clk 0:02:38.2]} 14... Be6 {[%clk 0:02:20.6]} 15. Qb4
{[%clk 0:02:34.9]} 15... b6 {[%clk 0:02:11.2]} 16. Qa4 {[%clk 0:02:16.2]} 16...
Kb7 {[%clk 0:02:07.6]} 17. g3 {[%clk 0:01:41.2]} 17... Bg4 {[%clk 0:02:02.5]}
18. Rd4 {[%clk 0:01:16.5]} 18... Bf3 {[%clk 0:01:49.9]} 19. Rd3 {[%clk
0:01:06.1]} 19... Rxd3 {[%clk 0:01:36.9]} 20. cxd3 {[%clk 0:01:07]} 20... Qg5
{[%clk 0:01:32.3]} 21. Nd4 {[%clk 0:01:01]} 21... b5 {[%clk 0:01:26.6]} 22. Nxf3
{[%clk 0:00:56.9]} 22... Qf6 {[%clk 0:01:19.2]} 23. Qd1 {[%clk 0:00:55.3]} 23...
h5 {[%clk 0:01:15.9]} 24. h4 {[%clk 0:00:51.2]} 24... b4 {[%clk 0:01:10.3]} 25.
Na4 {[%clk 0:00:50.9]} 25... Rd8 {[%clk 0:01:08.5]} 26. Nc5+ {[%clk 0:00:49.6]}
26... Kb6 {[%clk 0:01:07.9]} 27. d4 {[%clk 0:00:50]} 27... Ne7 {[%clk 0:01:03]}
28. Qb3 {[%clk 0:00:48.5]} 28... a5 {[%clk 0:01:02.7]} 29. a3 {[%clk 0:00:46.3]}
29... Ra8 {[%clk 0:01:00.4]} 30. Nd7+ {[%clk 0:00:45.5]} 1-0

[Event "Late-Titled-Tuesday-Blitz-August-29-2023"]
[Site "Chess.com"]
[Date "2023.08.29"]
[Round "11"]
[White "FredddieCroderg"]
[Black "ChEsper99"]
[Result "1-0"]
[WhiteElo "2303"]
[BlackElo "2156"]
[TimeControl "180+1"]
[EndTime "16:01:35 PDT"]
[Termination "FredddieCroderg won on time"]

1. e4 {[%clk 0:02:46.4]} 1... c5 {[%clk 0:02:50.4]} 2. Bc4 {[%clk 0:02:45.2]}
2... e6 {[%clk 0:02:49.7]} 3. Qf3 {[%clk 0:02:44.9]} 3... Nc6 {[%clk 0:02:45.5]}
4. d3 {[%clk 0:02:45.3]} 4... Ne5 {[%clk 0:02:40.7]} 5. Qg3 {[%clk 0:02:45.1]}
5... Nxc4 {[%clk 0:02:40.3]} 6. dxc4 {[%clk 0:02:46]} 6... d6 {[%clk 0:02:35.1]}
7. Nc3 {[%clk 0:02:46.5]} 7... Nf6 {[%clk 0:02:18.5]} 8. Bg5 {[%clk 0:02:44.1]}
8... Be7 {[%clk 0:02:17.5]} 9. O-O-O {[%clk 0:02:42.1]} 9... O-O {[%clk
0:01:40]} 10. Bxf6 {[%clk 0:02:35.4]} 10... Bxf6 {[%clk 0:01:36]} 11. Rxd6
{[%clk 0:02:33.7]} 11... Qa5 {[%clk 0:01:16.4]} 12. e5 {[%clk 0:02:33.3]} 12...
Be7 {[%clk 0:01:08.8]} 13. Rd3 {[%clk 0:02:23.1]} 13... a6 {[%clk 0:00:42]} 14.
Ne4 {[%clk 0:02:18.8]} 14... Kh8 {[%clk 0:00:37.2]} 15. Nf3 {[%clk 0:02:16.1]}
15... Qxa2 {[%clk 0:00:33.1]} 16. Ra3 {[%clk 0:02:10.5]} 16... Qxc4 {[%clk
0:00:26.6]} 17. Re1 {[%clk 0:02:08.5]} 17... b5 {[%clk 0:00:25.9]} 18. Nfg5
{[%clk 0:02:06.6]} 18... h6 {[%clk 0:00:21.4]} 19. Qg4 {[%clk 0:01:55.2]} 19...
Bxg5+ {[%clk 0:00:18.8]} 20. f4 {[%clk 0:01:51.4]} 20... Be7 {[%clk 0:00:16.4]}
21. Rh3 {[%clk 0:01:51]} 21... f5 {[%clk 0:00:13.4]} 22. exf6 {[%clk 0:01:50]}
22... Bxf6 {[%clk 0:00:13.8]} 23. Qg6 {[%clk 0:01:45]} 23... Qd4 {[%clk
0:00:03.3]} 24. c3 {[%clk 0:01:43.5]} 24... Qd5 {[%clk 0:00:02.5]} 25. Rxh6+
{[%clk 0:01:41.4]} 25... gxh6 {[%clk 0:00:02.5]} 26. Nxf6 {[%clk 0:01:41.6]}
26... Rxf6 {[%clk 0:00:02.3]} 27. Qxf6+ {[%clk 0:01:41.6]} 27... Kg8 {[%clk
0:00:02.6]} 28. Re3 {[%clk 0:01:39.6]} 28... Qf5 {[%clk 0:00:02.2]} 29. Rg3+
{[%clk 0:01:38.9]} 1-0